Cogmind - Beta 16 --- EXPLORER MODE // 2025.12.08 @ 10:51:12 Player: K.K.Y. Result: Destroyed by IZ-NJ8(R) with Subdweller Beam Cannon Performance ------------- Evolutions (0) 0 Regions Visited (3) 600 Robots Destroyed (17) 85 Value Destroyed (304) 304 Prototype IDs (0) 0 Alien Tech Used (0) 0 Bonus (0) 0 TOTAL SCORE: 989 Bonus ------- None Cogmind --------- Core Integrity 0/250 Matter 274/300 Energy 98/100 System Corruption 1% Temperature Cool (9) Movement Core (150) Ox2 Location -10/Subcaves Parts ------- > --- POWER (1) -------- (None) > --- PROPULSION (2) --- (None) > --- UTILITY (3) ------ Small Storage Unit Structural Scanner (fused) > --- WEAPON (2) ------- Light Cannon > --- INVENTORY (8) ---- Light Ion Engine Huge Storage Unit Sensor Array Sensor Array Light Cannon Mining Laser Peak State ------------ > --- POWER ------------ Light Ion Engine > --- PROPULSION ------- Hover Unit Hover Unit > --- UTILITY ---------- Small Storage Unit Weight Redist. System Structural Scanner > --- WEAPON ----------- Light Assault Rifle Light Assault Rifle > --- INVENTORY -------- Light Ion Engine Sensor Array Sensor Array Light Cannon Mining Laser [Rating: 9] Favorites ----------- Power Light Ion Engine Engine Light Ion Engine Propulsion Hover Unit Hover Unit Hover Unit Flight Unit Flight Unit Utility Structural Scanner Device Structural Scanner Storage Small Storage Unit Processor Signal Interpreter Weapon Light Assault Rifle Energy Gun Small Laser Ballistic Gun Light Assault Rifle Ballistic Cannon Light Cannon Special Weapon Mining Laser Build | -11 -10 -10 -10 ------- Run | Yrd Mat Min Sub Slots Evolved 1 | . 1 . . Power . | . . . . Propulsion . | . . . . Utility 1 | . 1 . . Weapon . | . . . . Parts Attached 16 | 3 12 . 1 Power 2 | . 2 . . Engine 2 | . 2 . . Core . | . . . . Reactor . | . . . . Propulsion 4 | . 4 . . Treads . | . . . . Leg . | . . . . Wheel . | . . . . Hover 3 | . 3 . . Flight 1 | . 1 . . Utility 5 | 1 4 . . Device 3 | 1 2 . . Storage 1 | . 1 . . Processor 1 | . 1 . . Hackware . | . . . . Protection . | . . . . Artifact . | . . . . Weapon 5 | 2 2 . 1 Energy Gun 1 | 1 . . . Energy Cannon . | . . . . Ballistic Gun 2 | . 2 . . Ballistic Cannon 1 | . . . 1 Launcher . | . . . . Special Weapon 1 | 1 . . . Impact Weapon . | . . . . Slashing Weapon . | . . . . Piercing Weapon . | . . . . Special Melee Weapon . | . . . . Unidentified Prototypes . | . . . . Parts Lost 10 | . 4 3 3 Power 1 | . . 1 . Propulsion 3 | . 1 1 1 Utility 2 | . 1 . 1 Weapon 4 | . 2 1 1 Highest Loss Streak 3 | . 3 3 3 To Critical Strikes . | . . . . Average Backups 4 | 3 4 5 7 Power . | . 1 1 1 Propulsion . | . . . . Utility 2 | 1 1 2 3 Weapon 1 | 1 1 2 3 Tool/Special . | . . . . Unused Backups 6 | . . . 6 Power 1 | . . . 1 Propulsion . | . . . . Utility 3 | . . . 3 Weapon 2 | . . . 2 Tool/Special . | . . . . Average Slot Usage (%) 67 | . 69 65 52 Engine 3 | . 5 1 . Hover 11 | . 10 13 9 Flight 1 | . 3 . . Device 18 | . 14 25 17 Storage 7 | . 3 12 12 Processor 4 | . 8 . . Energy Gun 2 | . 5 . . Ballistic Gun 13 | . 14 13 9 Special Weapon 1 | . 3 . . Peak Build Rating 9 | 5 9 9 6 Average Rating 6 | 1 6 6 4 On Entrance 5 | . 5 9 6 Avg Prop Armor Cover (%) . | . . . . Naked Turns . | . . . . Heaviest Build 11 | 3 11 11 7 Greatest Support 18 | 3 18 18 12 Greatest Overweight (x) 1 | . . 1 1 Average Overweight (x) . | . . . . Largest Inventory Capacity 8 | 5 8 8 8 Average Capacity 6 | 5 5 8 8 Most Carried 7 | 5 6 7 7 Average Carried 4 | 4 4 5 6 Final Capacity 8 | 5 8 8 8 Final Carried 7 | 5 5 7 6 Class Distribution -------------------- 100% | Hacker-Mutant Dominant Class ---------------- Hacker-Mutant | -10/Materials Hacker-Mutant | -10/Mines Hacker-Mutant | -10/Subcaves Resources | -11 -10 -10 -10 ----------- Run | Yrd Mat Min Sub Matter Collected 433 | 228 186 19 . Remotely . | . . . . Salvage Created 485 | 18 467 . . Parts 25 | 2 23 . . Haulers Intercepted 2 | . 2 . . Recyclers Shooed 1 | . 1 . . Parts Field Recycled . | . . . . Retrieved Matter . | . . . . Parts Self-Destructed . | . . . . Prevented . | . . . . Parts Restored . | . . . . Kills | -11 -10 -10 -10 ------- Run | Yrd Mat Min Sub Combat Hostiles Destroyed 9 | . 8 1 . Guns 6 | . 5 1 . Cannons 2 | . 2 . . Classes Destroyed 7 | 1 5 1 . Tunneler 2 | 1 1 . . Hauler 2 | . 2 . . Recycler 2 | . 2 . . Watcher 2 | . 2 . . Swarmer 4 | . 4 . . Grunt 4 | . 4 . . Demolisher 1 | . . 1 . Best Kill Streak 4 | 1 4 1 . Combat Bots Only 2 | . 2 1 . Max Kills in Single Turn 1 | 1 1 1 . Gunslinging . | . . . . Exploded . | . . . . Melee . | . . . . Uniques/NPCs Destroyed . | . . . . Combat | -11 -10 -10 -10 -------- Run | Yrd Mat Min Sub Hostile Shots Fired 73 | . 45 15 13 Missed 16 | . 13 . 3 Hits 57 | . 32 15 10 Projectile 57 | . 32 15 10 AOE 15 | . . 15 . Critical Strikes 2 | . 1 . 1 Damage Taken 795 | . 213 410 172 Core 260 | . 73 119 68 Absorbed by Shields . | . . . . Ignored by Resistances 478 | . 141 235 102 Core Remaining (%) 100 | 100 . . . Volleys Fired 81 | 2 54 12 13 Largest 2 | 1 2 2 1 Hottest 140 | 40 140 40 30 Shots Fired 115 | 2 84 17 12 Gun 106 | 2 79 17 8 Cannon 4 | . . . 4 Launcher . | . . . . Special 5 | . 5 . . Kinetic 79 | . 50 17 12 Thermal 36 | 2 34 . . Explosive . | . . . . Electromagnetic . | . . . . Robot Hit Streak 20 | 2 20 11 5 Robot Miss Streak 1 | . 1 1 1 Penetration Max . | . . . . Secondary Targets . | . . . . Shots Hit Robots 98 | 2 72 14 10 Core Hits 33 | 1 26 3 3 Critical Kills . | . . . . Critical Parts Destroyed . | . . . . Critical Strikes . | . . . . Melee Attacks . | . . . . Impact . | . . . . Slashing . | . . . . Piercing . | . . . . Sneak Attacks . | . . . . Combat Hostiles . | . . . . Follow-up Attacks . | . . . . Damage Inflicted 983 | 24 730 121 108 Guns 835 | 24 634 121 56 Cannons 52 | . . . 52 Explosions . | . . . . Melee . | . . . . Ramming . | . . . . Kinetic 567 | . 338 121 108 Thermal 416 | 24 392 . . Explosive . | . . . . Electromagnetic . | . . . . Impact . | . . . . Slashing . | . . . . Piercing . | . . . . Highest Corruption 1 | . 1 1 1 Average Corruption 1 | . 1 1 1 Corruption Purged . | . . . . Corruption Blocked . | . . . . Effects 10 | . 5 4 1 Message Errors 3 | . 1 2 . Matter Fused 3 | . 2 1 . Heat Flow Errors 2 | . 2 . . Parts Fused 1 | . . 1 . Weapon Failures 1 | . . . 1 Overload Shots . | . . . . Overflow Damage . | . . . . Projectiles . | . . . . Explosions . | . . . . Melee . | . . . . Knockbacks 1 | . . . 1 Impact . | . . . . Kinetic 1 | . . . 1 Secondary . | . . . . Self-Inflicted Damage . | . . . . Shots . | . . . . Rammed . | . . . . Targets Rammed . | . . . . Kicked . | . . . . Crushed . | . . . . Highest Temperature 157 | . 157 4 . Average Temperature 22 | . 22 3 . Received Heat Transfer 264 | . 174 . 90 Siege Activations . | . . . . Martial Activations . | . . . . Shielding Activations . | . . . . Robots Disrupted . | . . . . Combat Hostiles . | . . . . Robots Corrupted . | . . . . Combat Hostiles . | . . . . Parts Fried . | . . . . Impact Corruptions . | . . . . Robots Melted 1 | . 1 . . Combat Hostiles 1 | . 1 . . Parts Melted 3 | . 3 . . Heat Transferred 925 | 50 875 . . Parts Sabotaged . | . . . . Parts Stolen . | . . . . Parts Stripped . | . . . . Power Chain Reactions . | . . . . Alert | -11 -10 -10 -10 ------- Run | Yrd Mat Min Sub Maximum Alert Level . | . . . . Low Security (%) 100 | 100 100 100 . Level 1 . | . . . . Level 2 . | . . . . Level 3 . | . . . . Level 4 . | . . . . Level 5 . | . . . . High Security . | . . . . Max Security . | . . . . Peak Influence 81 | 5 81 20 . Initial . | . . . . Average 6 | . 11 . . Influence Increases 289 | 5 264 20 . Destroy 0b10 Robot/C 180 | . 160 20 . Destroy 0b10 Robot/NC 40 | 5 35 . . Destroy Leader 38 | . 38 . . Destroy Structure 1 | . 1 . . Lose Combat Pursuer 30 | . 30 . . Influence Decreases 289 | 5 264 20 . Time Decay 258 | 5 233 20 . Lost Part 31 | . 31 . . Squads Dispatched . | . . . . Investigation . | . . . . Extermination . | . . . . Reinforcement . | . . . . Assault . | . . . . Garrison . | . . . . Intercept . | . . . . Searches Triggered . | . . . . Construction Impeded . | . . . . Haulers Reinforced . | . . . . Active Scanning Responses . | . . . . Cargo Convoy Interrupts . | . . . . Stealth | -11 -10 -10 -10 --------- Run | Yrd Mat Min Sub Distress Signals . | . . . . Communications Jammed . | . . . . Distress Signals . | . . . . Times Spotted 17 | . 14 2 1 Peak Tracking Total 4 | . 4 2 1 Tactical Retreats 1 | . 1 . . Traps | -11 -10 -10 -10 ------- Run | Yrd Mat Min Sub Traps Triggered 1 | . 1 . . Indirectly . | . . . . Trap Hack Attempts . | . . . . Triggered . | . . . . Disarmed . | . . . . Reprogrammed . | . . . . Reused . | . . . . Traps Extracted . | . . . . Installed . | . . . . Triggered . | . . . . Machines | -11 -10 -10 -10 ---------- Run | Yrd Mat Min Sub Machines Disabled . | . . . . Max in Single Turn . | . . . . Machines Repaired . | . . . . Machines Dismantled . | . . . . Machines Sabotaged . | . . . . Overloaded Fab Kills . | . . . . Hacking | -11 -10 -10 -10 --------- Run | Yrd Mat Min Sub Machines Accessed 1 | . 1 . . Terminals . | . . . . Fabricators . | . . . . Repair Stations . | . . . . Recycling Units 1 | . 1 . . Scanalyzers . | . . . . Garrison Access . | . . . . Total Hacks 1 | . 1 . . Successful 1 | . 1 . . Failed . | . . . . Catastrophic . | . . . . Database Lockouts . | . . . . Manual . | . . . . Terminals . | . . . . Fabricators . | . . . . Repair Stations . | . . . . Recycling Units 1 | . 1 . . Scanalyzers . | . . . . Garrison Access . | . . . . Terminal Hacks . | . . . . Fabricator Hacks . | . . . . Repair Station Hacks . | . . . . Recycling Unit Hacks 1 | . 1 . . Retrieve Components 1 | . 1 . . Scanalyzer . | . . . . Garrison Access Hacks . | . . . . Unauthorized Hacks . | . . . . Terminals . | . . . . Fabricators . | . . . . Repair Stations . | . . . . Recycling Units . | . . . . Scanalyzers . | . . . . Garrison Access . | . . . . Data Cores Recovered . | . . . . Used . | . . . . Hacking Detections 1 | . 1 . . Full Trace Events . | . . . . Feedback Events . | . . . . Feedback Blocked . | . . . . Robot Schematics Acquired . | . . . . Robots Built . | . . . . Authchips . | . . . . Time . | . . . . Total Robot Build Rating . | . . . . Part Schematics Acquired . | . . . . Parts Built . | . . . . Authchips . | . . . . Time . | . . . . Total Part Build Rating . | . . . . Part Studies Acquired . | . . . . Parts Repaired . | . . . . Time . | . . . . Parts Recycled . | . . . . Recycled Matter . | . . . . Retrieved Matter . | . . . . Retrieved Components 9 | . 9 . . Parts Scanalyzed . | . . . . Part Schematics Acquired . | . . . . Parts Damaged . | . . . . Bothacking | -11 -10 -10 -10 ------------ Run | Yrd Mat Min Sub Used RIF Installer . | . . . . Robots Hacked . | . . . . Non-combat . | . . . . Combat . | . . . . Robot Hacks Applied . | . . . . Relay Couplers Released . | . . . . Fabnet Peak Effective % . | . . . . Robots Rewired . | . . . . Allies Hacked . | . . . . Hacks Repelled . | . . . . Allies | -11 -10 -10 -10 -------- Run | Yrd Mat Min Sub Total Allies . | . . . . Largest Group . | . . . . Highest-Rated Group . | . . . . Highest-Rated Ally . | . . . . Total Orders . | . . . . Ally Attacks . | . . . . Total Damage . | . . . . Kills . | . . . . Allies Corrupted . | . . . . Allies Melted . | . . . . Intel | -11 -10 -10 -10 ------- Run | Yrd Mat Min Sub Active Infowar (turns) 1429 | 9 749 627 44 Terrain 351 | 9 342 . . Structural 1078 | . 407 627 44 Robot Analysis Total . | . . . . Derelict Logs Recovered 1 | . . 1 . Drone Launches . | . . . . Drone Recoveries . | . . . . Exploration | -11 -10 -10 -10 ------------- Run | Yrd Mat Min Sub Turns Passed 1535 | 53 811 627 44 Spaces Moved 1688 | 79 962 616 31 Core 324 | 79 245 . . Treads . | . . . . Legs . | . . . . Wheels . | . . . . Hover 1234 | . 587 616 31 Flight 130 | . 130 . . Fastest Speed 40 | 50 40 56 60 Average Speed 67 | 50 52 91 65 Slowest Speed 120 | 50 60 120 120 Overloaded Moves . | . . . . Propulsion Burnouts . | . . . . Robots Hopped 2 | . 2 . . Potential Cave-ins . | . . . . Cave-ins Triggered . | . . . . Exploration Rate (%) 51 | 3 98 99 7 Regions Visited 3 Branch Regions 2 Pre-discovered Areas 1 | . . 1 . Known Exits Taken 3 | 1 1 1 . Unknown Exits Taken . | . . . . Scrap Searched 2 | . . 2 . Spaces Dug . | . . . . Terrain Destroyed . | . . . . Melee . | . . . . Projectile . | . . . . AOE . | . . . . Terrain Rammed . | . . . . Walls Destroyed . | . . . . Machines Disabled . | . . . . Actions | -11 -10 -10 -10 --------- Run | Yrd Mat Min Sub Total 1977 | 88 1179 665 45 Wait 179 | . 143 36 . Move 1681 | 78 957 615 31 Hop 2 | . 2 . . Pick Up 15 | 5 8 2 . Fast Attach 5 | 3 2 . . Attach 9 | . 8 . 1 Detach 1 | . 1 . . Swap 2 | . 2 . . Drop 2 | . 2 . . Fire 81 | 2 54 12 13 Melee . | . . . . Ram . | . . . . Kick . | . . . . Crush . | . . . . Escape Stasis . | . . . . Rewire . | . . . . Trap . | . . . . Miscellaneous . | . . . . Route ------- -11/Scrapyard -10/Materials (discovered 5 exits: *Mat x3 / *Min / Sub) -10/Mines (discovered 4 exits: *Mat x2 / *Exi / *Sub) -10/Subcaves History --------- Turn | Location | Event 8 | -11/Scrapyard | Identified exit to Materials 8 | -11/Scrapyard | Discovered exit to Materials (range 15) 54 | -11/Scrapyard | Entered Materials 54 | -10/Materials | Evolved 1 slot: Utility x1 135 | -10/Materials | Identified exit to Mines 135 | -10/Materials | Discovered exit to Mines (range 13) 176 | -10/Materials | Identified exit to Materials 176 | -10/Materials | Discovered exit to Materials (range 10) 305 | -10/Materials | Build established: Hacker-Mutant 429 | -10/Materials | Lost 3 parts (1n1u1w) 476 | -10/Materials | Discovered exit to Materials (range 11) 569 | -10/Materials | Identified exit to Subcaves 569 | -10/Materials | Discovered exit to Subcaves (range 6) 725 | -10/Materials | Discovered exit to Materials (range 7) 865 | -10/Materials | Entered Mines 882 | -10/Mines | Assembled infested the area 923 | -10/Mines | Core integrity fell below 50% 957 | -10/Mines | Lost 3 parts (1p1n1w) 1011 | -10/Mines | Discovered exit to Materials (range 12) 1071 | -10/Mines | Learned location of 1 exit from Materials 1144 | -10/Mines | Identified exit to Exiles 1144 | -10/Mines | Discovered exit to Exiles (range 5) 1328 | -10/Mines | Received a Rocket Launcher from a helpful Derelict 1425 | -10/Mines | Discovered exit to Materials (range 7) 1427 | -10/Mines | Learned location of Storage (-9) 1489 | -10/Mines | Discovered exit to Subcaves (range 6) 1492 | -10/Mines | Entered Subcaves 1493 | -10/Subcaves | Approached by a straggling Scientist 1520 | -10/Subcaves | Core integrity fell below 20% 1536 | -10/Subcaves | Destroyed by IZ-NJ8(R) with Subdweller Beam Cannon Last Messages --------------- 01489_ EXIT=FOUND: SUBCAVES LOCATION=SUBCAVES AMBIENT_HEAT=-10 GOAL=ESCAPE 01493_ OX-94B(c): "Thank the algorithms! I was beginning to lose hope I'd never make it past all the Subs lurking out here." 01496_ OX-94B(c): "Hey, let me tag along and I can get us both out of this nasty situation. At least I think I can... The group I got separated from was talking about a shortcut back to the UFD." 01509_ Weight Redist. System destroyed. 01515_ System corrupted: Lgt. Assault Rifle jammed. 01523_ IZ-NJ8(R) affixes Scrap Shield Fragment to Scrap Shield. 01526_ Hover Unit destroyed. 01528_ Lgt. Assault Rifle destroyed. 01534_ IZ-NJ8(R) knocked back. Map ----- +----------------------------------------------------+ | | | | | | | | | | | | | | | | | | | | | | | | | | | | | | | ?????????????????????????????????????????????????? | | ?????????????????????????????????????????????????? | | ?????????????????????????????????????????????????? | | ?????????????????????????????????????????????????? | | ?????????????????????????????????????????????????? | | ?????????????????????????????????????????????????? | | ?????????????????????????????????????????????????? | | ?????????????????????????#######?????????????????? | | ???????????????????????#########?????????????????? | | ???????????????????????###<$$$##?????????????????? | | ???????????????????????##@ R<###?????????????????? | | ???????????????????????##%;#####?????????????????? | | ???????????????????????##< "##?????????????????? | | ???????????????????????###; #####????????????????? | | ?????????????####?????####< < #############??????? | | ?????????????### ????#### c ##############????? | | ?????????????## ????### ## ####????? | | ?????????????## ???## # ????? | | ?????????????## #### ??? | | ?????????????## ##### ??? | | ?????????????## #### ##???? | | ????????????? ## ##???? | | ????????????????? ## ###### ??###???? | | ??????????????## ## ###### ???###???? | | ??????????????## ## ###?????????????? | | ??????????????## ## ###??????????????? | | ??????????????## ###??????????????? | | ??????????????### ###??????????????? | | ??????????????### ### ## ##??????????????? | | ???????????????######### #### ????????????? | | ???????????????###??#### ### ????????? | | ????????????????###??### ## ## ????????? | | ???????????????######## ### ## ## ????????? | | ??????????????#### #### ######## ##?????????? | | ?????????????#### ####### ##?????????? | +----------------------------------------------------+ Best States ------------- Heat Dissipation 25 Energy Generation 10 Energy Capacity 125 Matter Stores 300 Matter Capacity 300 Sight Range 16 Terrain Scan Range 16 Terrain Scan Density 10 Additional Mass Support 6 Resistance: KI 35 Resistance: TH 35 Resistance: EX 35 Resistance: EM 35 Resistance: I 35 Resistance: S 35 Resistance: P 35 Evasion (%) 62 Offensive Hacking 20 Item Schematics ----------------- None Robot Schematics ------------------ None Fabricated ------------ Nothing Repaired ---------- Nothing Studied --------- None Alien Tech Used ----------------- None Achievements -------------- None Challenges ------------ None Game ------ Seed ResetSuperquantumComputer Manual? 0 Play Time 00:10:32 Cumulative 175.5 hours Start 2025.12.08 @ 10:41:02 End 2025.12.08 @ 10:51:12 Sessions 1 Manual Loads 0 Difficulty Explorer Special Mode None Game No. 243 Rogue 0 Adventurer 0 Explorer 243 Win Type - Total 0 Types 0/0/0/0/0/0/0/0/0/0 Lore% 70 Gallery% 67 Achievement% 53 Wizard Run 0 Options --------- Layout 1 ASCII 0 Keyboard 0 Movement Mouse Keybinds 0 Fullscreen 1 Font 24/Smallcaps Map View 50x35 Zoom Use 0% Tactical HUD 1 Map Filters NONE Filters NONE Steam 1 RUN: 17691061-b1cb-45e5-b7ec-2b9c5beb3029